bitfinex/quotes_SOLUSD_20250912
["timestamp","ask_amount","ask_price","bid_price","bid_amount"]
[1757687087306,0.06,241.33,241.32,48.55559401]
[1757687088009,0.06,241.33,241.32,52.69946936]
[1757687088803,0.06,241.33,241.32,48.55559401]
[1757687089003,0.06,241.33,241.32,52.69946936]
[1757687090504,0.06,241.33,241.32,78.69946936]
[1757687090705,0.06,241.33,241.32,78.67946936]
[1757687091015,0.06,241.33,241.32,81.1959816]
[1757687092595,0.06,241.33,241.32,55.1959816]
[1757687093204,3.9230011,241.41,241.36,39.59559401]
[1757687093407,3.9230011,241.44,241.38,13.59559401]
[1757687093713,3.9230011,241.48,241.44,13.59559401]
[1757687094013,3.9230011,241.48,241.46,13.59559401]
[1757687094305,3.9230011,241.47,241.46,13.59559401]
[1757687094505,4.13992962,241.55,241.46,48.51559401]
[1757687094709,3.9230011,241.47,241.46,47.79559401]
[1757687094894,3.9230011,241.48,241.47,13.59559401]
[1757687095088,3.9230011,241.48,241.47,48.48559401]
[1757687095492,3.9230011,241.48,241.47,52.62683136]
[1757687095693,3.9230011,241.48,241.47,14.30559401]
[1757687095902,3.9230011,241.48,241.47,48.48559401]
[1757687096110,3.9230011,241.48,241.44,0.71]
[1757687096311,4.13992962,241.55,241.46,13.59559401]
[1757687096510,3.9230011,241.49,241.47,48.48559401]
[1757687096811,3.9230011,241.49,241.48,0.71]
[1757687097016,3.9230011,241.49,241.48,34.89]
[1757687097201,3.9230011,241.49,241.48,0.71]
[1757687097398,3.9230011,241.49,241.48,34.89]
[1757687097722,4.13992962,241.55,241.49,13.59559401]
[1757687097921,14.48975367,241.55,241.5,34.16]
[1757687098130,14.48975367,241.55,241.46,0.71]
[1757687098131,0.49,241.54,241.47,13.59559401]
[1757687098416,0.49,241.53,241.48,34.16]
[1757687098620,0.49,241.53,241.49,34.16]
[1757687099014,8.06378784,241.5,241.49,34.16]
[1757687099193,8.06378784,241.5,241.45,0.71]
[1757687099389,3.9230011,241.46,241.43,13.59559401]
[1757687099611,3.9230011,241.44,241.38,13.59559401]
[1757687099810,3.9230011,241.39,241.38,14.30559401]
[1757687100015,3.9230011,241.39,241.38,47.75559401]
[1757687100214,3.9230011,241.39,241.32,40.17961439]
[1757687100414,26.0,241.47,241.35,13.59559401]
[1757687100727,0.49,241.46,241.37,13.59559401]
[1757687101041,3.9230011,241.41,241.4,13.59559401]
[1757687101320,3.9230011,241.41,241.36,26.0]
[1757687101321,8.06538241,241.41,241.36,26.0]
[1757687101512,4.14238131,241.41,241.37,34.14]
[1757687101893,4.14215007,241.43,241.37,34.85]
[1757687102095,4.14215007,241.43,241.37,34.14]
[1757687102320,4.14181148,241.45,241.38,14.30559401]
[1757687102633,3.9230011,241.41,241.39,0.71]
[1757687102802,3.9230011,241.41,241.4,34.85]
[1757687102998,3.9830011,241.41,241.4,34.85]
[1757687103298,0.06,241.41,241.4,48.44559401]
[1757687104111,0.06,241.41,241.36,26.0]
[1757687104326,0.06,241.41,241.39,13.59559401]
[1757687104621,0.06,241.41,241.4,34.14]
[1757687104912,0.06,241.44,241.41,13.59559401]
[1757687105125,0.06,241.46,241.45,13.59559401]
[1757687105330,3.9230011,241.52,241.47,13.59559401]
[1757687105495,3.9230011,241.52,241.49,13.59559401]
[1757687105703,3.9230011,241.52,241.5,0.71]
[1757687105924,3.9230011,241.53,241.51,34.12]
[1757687107107,4.13958686,241.57,241.51,34.12]
[1757687107715,3.9230011,241.52,241.4,80.9]
[1757687107900,3.9230011,241.46,241.43,13.59559401]
[1757687108097,3.9230011,241.47,241.45,13.59559401]
[1757687108400,3.9230011,241.47,241.46,14.30559401]
[1757687108816,14.48855403,241.57,241.46,0.71]
[1757687108817,3.9230011,241.5,241.46,0.71]
[1757687109023,10.35127458,241.52,241.47,34.12]
[1757687109223,3.9230011,241.48,241.39,0.71]
[1757687109426,4.75061529,241.51,241.41,13.59559401]
[1757687109598,4.14061529,241.51,241.43,13.59559401]
[1757687109803,4.14044343,241.53,241.45,13.59559401]
[1757687110012,3.9230011,241.48,241.47,13.59559401]
[1757687110203,3.9230011,241.49,241.47,48.40559401]
[1757687110410,10.95918082,241.57,241.48,0.71]
[1757687110411,3.9230011,241.5,241.48,0.71]
[1757687110601,3.9230011,241.5,241.49,13.59559401]
[1757687110799,3.9230011,241.5,241.49,0.71]
[1757687111304,10.34792062,241.6,241.49,4.85093046]
[1757687111503,4.13907284,241.6,241.51,13.59559401]
[1757687111927,3.9230011,241.55,241.51,94.49559401]
[1757687112218,6.08288833,241.64,241.53,13.59559401]
[1757687112219,6.29838479,241.64,241.53,13.59559401]
[1757687112398,0.61,241.7,241.59,13.59559401]
[1757687112606,3.9230011,241.68,241.61,13.59559401]
[1757687112916,3.9230011,241.68,241.63,13.59559401]
[1757687113107,15.42013098,241.71,241.63,14.30559401]
[1757687113426,15.42013098,241.71,241.64,34.1]
[1757687113632,3.9230011,241.68,241.65,34.08]
[1757687113804,4.467158,241.71,241.63,14.30559401]
[1757687114129,3.9230011,241.67,241.64,34.08]
[1757687114301,3.9230011,241.66,241.65,34.08]
[1757687114501,9.64356078,241.65,241.61,13.59559401]
[1757687114726,9.64356078,241.63,241.62,34.08]
[1757687114904,0.61,241.7,241.62,34.08]
[1757687115113,4.13753154,241.69,241.63,34.08]
[1757687115333,9.64356078,241.66,241.63,34.08]
[1757687115833,4.13753154,241.69,241.64,34.08]
[1757687116047,4.13753154,241.69,241.65,34.08]
[1757687116048,9.64356078,241.66,241.65,34.08]
[1757687116226,10.25356078,241.66,241.54,29.8]
[1757687116516,14.48136041,241.69,241.54,0.71]
[1757687116517,0.61,241.65,241.54,0.71]
[1757687116722,9.64356078,241.57,241.55,33.64]
[1757687116918,9.64356078,241.58,241.56,0.71]
[1757687117097,9.64356078,241.59,241.57,34.79]
[1757687117298,13.78217186,241.63,241.59,13.59559401]
[1757687117503,4.1383526,241.65,241.6,0.71]
[1757687118122,0.61,241.64,241.55,13.59559401]
[1757687118422,9.64356078,241.64,241.58,13.59559401]
[1757687118623,9.64356078,241.6,241.59,34.06]
[1757687119009,10.25356078,241.6,241.51,4.85059484]
[1757687119216,20.68765774,241.69,241.52,47.65559401]
[1757687119398,9.64356078,241.57,241.53,0.71]
[1757687119724,0.61,241.67,241.54,0.71]
[1757687120023,0.61,241.67,241.56,13.59559401]
[1757687120326,9.64356078,241.61,241.58,13.59559401]
[1757687120505,0.61,241.67,241.59,0.71]
[1757687120702,14.48136041,241.69,241.61,13.59559401]
[1757687120921,15.09136041,241.69,241.61,13.59559401]
[1757687121125,9.64356078,241.65,241.61,14.30559401]
[1757687121321,9.64356078,241.65,241.62,0.71]
[1757687121531,0.32980034,241.71,241.64,13.59559401]
[1757687121712,9.64356078,241.7,241.66,13.59559401]
[1757687122018,9.64356078,241.7,241.67,34.75]
[1757687122227,0.32980034,241.71,241.67,34.75]
[1757687122433,5.0,241.73,241.68,14.71936428]
[1757687122636,5.0,241.73,241.7,13.59559401]
[1757687122806,9.64356078,241.71,241.66,0.71]
[1757687123006,9.64356078,241.69,241.68,13.59559401]
[1757687123238,9.13686697,241.73,241.68,14.30559401]
[1757687123414,5.0,241.73,241.7,13.59559401]
[1757687123605,5.0,241.73,241.68,13.59559401]
[1757687123606,9.13697785,241.73,241.71,34.04]
[1757687123806,9.64356078,241.72,241.71,34.04]
[1757687124319,9.64356078,241.72,241.71,34.75]
[1757687124519,5.0,241.73,241.71,34.75]
[1757687124716,5.0,241.73,241.72,34.04]
[1757687125036,5.0,241.73,241.72,48.35559401]
[1757687125224,14.64356078,241.73,241.69,0.72]
[1757687125406,9.13686987,241.73,241.7,34.04]
[1757687125606,5.0,241.73,241.68,0.72]
[1757687125807,5.0,241.73,241.71,34.04]
[1757687126040,9.1368668,241.73,241.71,34.04]
[1757687126434,9.1368668,241.73,241.64,47.51384991]
[1757687126727,9.1368668,241.73,241.64,29.78]
[1757687126728,9.64356078,241.65,241.64,29.78]
[1757687126935,9.64356078,241.65,241.64,63.8]
[1757687127303,10.35356078,241.65,241.5,10.35185149]
[1757687127507,10.34345155,241.7,241.51,0.72]
[1757687127508,9.64356078,241.55,241.51,0.72]
[1757687127726,9.64356078,241.52,241.48,0.72]
[1757687127935,9.64356078,241.5,241.49,34.02]
[1757687128115,9.64356078,241.5,241.49,44.36345155]
[1757687128517,9.64356078,241.5,241.39,10.35655562]
[1757687128518,10.35356078,241.5,241.3,29.81]
[1757687128832,9.64356078,241.4,241.35,9.64356078]
[1757687129127,9.64356078,241.4,241.33,14.95]
[1757687129128,9.64356078,241.36,241.33,14.95]
[1757687129431,9.64356078,241.34,241.33,14.95]
[1757687130123,0.71,241.39,241.33,14.95]
[1757687130318,20.0,241.48,241.33,14.95]
[1757687130319,0.71,241.43,241.33,14.95]
[1757687130519,9.64356078,241.35,241.33,14.95]
[1757687131056,9.64356078,241.36,241.33,14.95]
[1757687131205,0.71,241.47,241.34,14.31559401]
[1757687131405,9.64356078,241.42,241.35,0.72]
[1757687131621,9.64356078,241.43,241.36,13.59559401]
[1757687131820,9.64356078,241.43,241.38,13.59559401]
[1757687132632,0.71,241.54,241.4,13.59559401]
[1757687132812,4.13985747,241.56,241.42,13.59559401]
[1757687133135,9.64356078,241.52,241.44,13.59559401]
[1757687133306,9.64356078,241.48,241.44,13.59559401]
[1757687133509,9.64356078,241.46,241.39,4.14253547]
[1757687133808,4.13985747,241.56,241.41,13.59559401]
[1757687133809,0.71,241.55,241.41,13.59559401]
[1757687134029,0.71,241.55,241.42,0.72]
[1757687134411,13.78310332,241.58,241.43,13.59559401]
[1757687134616,9.64356078,241.58,241.47,13.59559401]
[1757687134808,19.28712156,241.58,241.51,13.59559401]
[1757687135127,9.64356078,241.56,241.53,13.59559401]
[1757687135741,9.64356078,241.58,241.54,34.02]
[1757687135915,0.71,241.62,241.55,34.02]
[1757687136112,0.71,241.66,241.55,34.02]
[1757687136306,9.64356078,241.61,241.56,34.02]
[1757687136529,9.64356078,241.62,241.57,0.72]
[1757687136836,9.64356078,241.6,241.58,34.02]
[1757687137031,9.64356078,241.6,241.57,13.59559401]
[1757687137235,9.64356078,241.6,241.58,34.02]
[1757687137418,9.64356078,241.58,241.5,0.72]
[1757687137731,9.64356078,241.51,241.5,40.31559401]
[1757687137933,0.71,241.59,241.5,40.31559401]
[1757687137934,9.64356078,241.53,241.5,57.43559401]
[1757687138233,9.64356078,241.54,241.51,0.72]
[1757687138432,9.64356078,241.52,241.46,30.8613814]
[1757687138618,9.64356078,241.52,241.47,47.61559401]
[1757687138932,9.64356078,241.54,241.49,13.59559401]
[1757687139240,9.64356078,241.54,241.51,13.59559401]
[1757687139442,4.13938116,241.59,241.52,0.72]
[1757687139620,9.64356078,241.55,241.52,0.72]
[1757687139943,4.13938116,241.59,241.53,34.74]
[1757687140149,9.64356078,241.54,241.49,13.59559401]
[1757687140433,9.64356078,241.52,241.51,13.59559401]
[1757687140646,9.64356078,241.52,241.51,14.31559401]
[1757687140813,9.64356078,241.52,241.51,48.33559401]
[1757687141008,9.64356078,241.52,241.51,47.59559401]
[1757687141226,9.64356078,241.52,241.48,26.0]
[1757687141515,4.8496704,241.57,241.49,14.31559401]
[1757687141728,4.8496704,241.57,241.5,34.0]
[1757687142225,4.8496704,241.57,241.51,34.0]
[1757687142539,4.1393759,241.59,241.52,34.0]
[1757687142830,4.1393759,241.59,241.49,14.31559401]
[1757687142831,4.1393759,241.59,241.53,34.0]
[1757687143022,9.64356078,241.54,241.53,34.0]
[1757687144730,9.64356078,241.54,241.49,17.73651519]
[1757687144923,4.13994667,241.55,241.53,34.0]
[1757687145125,9.64356078,241.54,241.53,34.0]
[1757687145326,4.13973255,241.57,241.53,34.0]
[1757687145521,9.64356078,241.54,241.45,80.9]
[1757687145821,9.64356078,241.47,241.46,13.59559401]
[1757687146055,9.64356078,241.47,241.46,34.0]
[1757687147009,9.64356078,241.47,241.46,34.72]
[1757687147213,4.14011571,241.54,241.46,38.86145815]
[1757687147508,9.64356078,241.48,241.46,38.86145815]
[1757687147709,9.64356078,241.48,241.47,0.72]
[1757687147912,9.64356078,241.48,241.47,14.31559401]
[1757687148140,9.64356078,241.5,241.48,13.59559401]
[1757687148313,9.64356078,241.53,241.5,13.59559401]
[1757687148519,9.64356078,241.53,241.51,0.72]
[1757687148726,9.64356078,241.53,241.47,13.59559401]
[1757687149032,9.64356078,241.49,241.42,13.59559401]
[1757687149240,0.71,241.48,241.35,0.72]
[1757687149418,0.71,241.48,241.36,34.0]
[1757687149620,9.64356078,241.39,241.36,34.0]
[1757687149826,0.71,241.52,241.38,13.59559401]
[1757687150021,9.64356078,241.42,241.4,39.59559401]
[1757687150227,9.64356078,241.42,241.41,48.31559401]
[1757687150537,6.34839998,241.43,241.42,13.59559401]
[1757687150728,6.34839998,241.45,241.42,14.31559401]
[1757687150929,6.34839998,241.45,241.44,13.59559401]
[1757687151135,6.34839998,241.45,241.44,14.31559401]
[1757687151743,6.34839998,241.51,241.44,40.31559401]
[1757687151931,6.34839998,241.49,241.46,13.59559401]
[1757687152133,6.34839998,241.49,241.48,13.59559401]
[1757687152642,6.34839998,241.49,241.46,0.72]
[1757687152939,4.14010101,241.54,241.47,34.0]
[1757687153236,4.14010101,241.54,241.46,0.72]
[1757687153438,4.14010101,241.54,241.48,34.0]
[1757687153639,4.14010101,241.54,241.41,13.59559401]
[1757687153640,0.71,241.53,241.41,13.59559401]
[1757687153826,0.71,241.52,241.43,13.59559401]
[1757687154141,6.34839998,241.44,241.43,13.59559401]
[1757687154438,6.34839998,241.44,241.43,47.59559401]
[1757687154647,6.34839998,241.44,241.43,13.59559401]
[1757687154842,6.34839998,241.44,241.43,47.59559401]
[1757687155724,6.34839998,241.44,241.43,34.0]
[1757687156044,6.34839998,241.44,241.41,4.14230152]
[1757687156045,11.19023304,241.44,241.34,4.82353194]
[1757687156339,0.7,241.51,241.37,26.0]
[1757687156636,0.7,241.54,241.42,13.59559401]
[1757687156839,0.7,241.54,241.44,13.59559401]
[1757687156840,6.34839998,241.47,241.44,13.59559401]
[1757687157032,6.34839998,241.47,241.45,4.82164423]
[1757687157342,6.34839998,241.47,241.44,13.59559401]
[1757687157529,4.14081018,241.5,241.44,13.59559401]
[1757687157530,6.34839998,241.45,241.44,13.59559401]
[1757687157721,6.34839998,241.45,241.44,47.59559401]
[1757687158041,6.34839998,241.45,241.41,4.14220802]
[1757687158239,6.34839998,241.43,241.42,47.59559401]
[1757687158840,7.04839998,241.43,241.31,13.59559401]
[1757687159143,6.34839998,241.34,241.32,4.14386698]
[1757687159319,6.34839998,241.34,241.33,34.01]
[1757687159519,6.34839998,241.34,241.33,48.28559401]
[1757687160237,6.34839998,241.36,241.33,48.28559401]
[1757687160843,6.34839998,241.36,241.33,0.03]
[1757687161032,6.34839998,241.36,241.34,33.98]
[1757687161233,0.7,241.4,241.34,38.12352873]
[1757687161442,6.34839998,241.35,241.34,38.12352873]
[1757687161636,6.34839998,241.37,241.34,38.12352873]
[1757687161948,6.34839998,241.36,241.34,38.12352873]
[1757687162148,4.14234034,241.41,241.34,38.12352873]
[1757687162451,6.34839998,241.36,241.34,38.12352873]
[1757687162630,4.84216024,241.42,241.34,38.12352873]
[1757687162941,6.34839998,241.57,241.35,13.59559401]
[1757687162942,6.34839998,241.39,241.35,13.59559401]
[1757687163150,6.34839998,241.41,241.35,13.59559401]
[1757687163335,0.7,241.45,241.36,33.98]
[1757687163527,6.34839998,241.39,241.36,33.98]
[1757687163722,6.34839998,241.39,241.34,4.14353194]
[1757687163919,6.34839998,241.39,241.37,34.0]
[1757687164341,6.34839998,241.39,241.38,33.98]
[1757687164942,0.7,241.42,241.38,33.98]
[1757687165145,6.34839998,241.39,241.38,33.98]
[1757687165343,6.34839998,241.39,241.38,38.1228453]
[1757687165522,14.49335375,241.49,241.38,38.1228453]
[1757687165523,6.34839998,241.4,241.38,33.98]
[1757687165726,6.34839998,241.4,241.34,4.1433694]
[1757687165924,6.34839998,241.37,241.35,34.0]
[1757687166154,6.34839998,241.37,241.36,33.98]
[1757687166851,0.7,241.41,241.36,33.98]
[1757687166852,6.34839998,241.38,241.36,33.98]
[1757687167240,6.34839998,241.41,241.37,0.68]
[1757687167754,6.34839998,241.41,241.36,30.14313374]
[1757687167957,6.34839998,241.39,241.34,4.14337609]
[1757687168146,6.34839998,241.35,241.33,26.03]
[1757687168455,6.34839998,241.35,241.34,33.98]
[1757687168633,0.7,241.39,241.34,33.98]
[1757687168836,10.49145641,241.37,241.33,0.03]
[1757687169045,6.34839998,241.35,241.34,33.98]
[1757687170254,6.34839998,241.35,241.33,0.03]
[1757687170255,0.7,241.35,241.33,0.03]
[1757687170432,6.34839998,241.34,241.33,0.03]
[1757687170632,4.14304262,241.37,241.33,0.03]
[1757687170839,7.04839998,241.34,241.33,0.03]
[1757687171745,6.34839998,241.34,241.33,0.03]
[1757687172253,6.34839998,241.34,241.33,34.01]
[1757687172562,0.7,241.42,241.33,34.01]
[1757687172847,0.7,241.42,241.34,4.14353194]
[1757687173050,0.7,241.42,241.33,34.01]
[1757687173051,6.34839998,241.36,241.33,34.01]
[1757687173254,6.34839998,241.36,241.34,33.98]
[1757687173452,6.34839998,241.4,241.34,34.66]
[1757687173631,0.7,241.47,241.35,14.27559401]
[1757687173954,14.49155348,241.52,241.36,33.98]
[1757687173955,6.34839998,241.39,241.36,33.98]
[1757687174138,12.26248758,241.49,241.36,33.98]
[1757687174139,6.34839998,241.37,241.36,33.98]
[1757687174339,0.7,241.44,241.36,33.98]
[1757687174542,6.34839998,241.38,241.36,33.98]
[1757687174928,6.34839998,241.38,241.33,0.71]
[1757687175131,6.34839998,241.38,241.34,33.98]
[1757687175547,6.34839998,241.38,241.33,4.17367966]
[1757687175757,6.34839998,241.38,241.35,33.98]
[1757687175938,6.34839998,241.38,241.36,33.98]
[1757687176451,6.34839998,241.38,241.33,4.85367966]
[1757687176657,6.34839998,241.35,241.33,0.03]
[1757687176856,6.34839998,241.35,241.34,33.98]
[1757687177045,6.34839998,241.35,241.33,0.03]
[1757687177245,4.1428453,241.38,241.34,33.98]
[1757687177454,6.34839998,241.35,241.34,33.98]
[1757687177656,0.7,241.42,241.34,33.98]
[1757687177836,6.34839998,241.35,241.34,33.98]
[1757687179649,7.04839998,241.35,241.33,0.03]
[1757687179845,0.7,241.34,241.33,0.03]
[1757687180161,10.49177753,241.35,241.33,0.03]
[1757687180962,4.84353194,241.34,241.33,0.03]
[1757687181160,4.84353194,241.34,241.33,34.01]
[1757687181866,11.19193192,241.34,241.33,0.03]
[1757687183167,21.55076178,241.34,241.3,0.03]
[1757687183343,6.34839998,241.31,241.3,0.03]
[1757687183742,7.04839998,241.31,241.3,0.03]
[1757687184143,6.34839998,241.31,241.3,0.71]
[1757687184445,4.14267368,241.39,241.3,0.71]
[1757687184646,6.34839998,241.32,241.3,0.71]
[1757687184846,6.34839998,241.32,241.3,0.03]
[1757687185045,4.14302744,241.37,241.31,33.98]
[1757687185245,6.34839998,241.35,241.32,0.72]
[1757687185462,6.34839998,241.35,241.33,0.72]
[1757687185665,6.34839998,241.35,241.34,0.72]
[1757687185844,4.20235114,241.41,241.34,0.72]
[1757687186162,6.34839998,241.36,241.3,14.34559401]
[1757687186361,6.34839998,241.33,241.3,14.34559401]
[1757687188559,6.34839998,241.34,241.32,52.43946479]
[1757687188755,6.34839998,241.34,241.32,51.71946479]
[1757687188961,6.34839998,241.34,241.33,0.72]
[1757687189162,0.06,241.41,241.34,13.59559401]
[1757687189361,6.34839998,241.36,241.34,13.59559401]
[1757687189539,6.34839998,241.36,241.34,14.31559401]
[1757687189744,6.34839998,241.36,241.35,33.98]
[1757687190157,6.34839998,241.36,241.35,34.7]
[1757687190950,6.34839998,241.36,241.35,33.98]
[1757687192179,6.34839998,241.36,241.31,30.86389585]
[1757687192478,6.34839998,241.32,241.3,0.03]
[1757687192660,6.34839998,241.32,241.31,33.98]
[1757687192976,6.34839998,241.32,241.3,0.03]
[1757687193184,6.34839998,241.32,241.31,33.98]
[1757687193353,0.72,241.37,241.31,33.98]
[1757687193551,4.86250207,241.4,241.31,38.84402598]
[1757687193755,6.34839998,241.33,241.31,38.84402598]
[1757687194056,6.34839998,241.33,241.32,0.72]
[1757687194264,6.34839998,241.33,241.31,38.12402598]
[1757687194571,4.14250207,241.4,241.32,0.72]
[1757687194771,6.34839998,241.35,241.32,14.31559401]
[1757687194957,6.34839998,241.35,241.33,0.72]
[1757687195159,4.20233611,241.41,241.34,38.82353194]
[1757687195369,6.34839998,241.35,241.34,38.82353194]
[1757687195564,6.34839998,241.35,241.34,38.10353194]
[1757687196163,6.34839998,241.35,241.34,4.14353194]
[1757687196465,6.34839998,241.35,241.34,33.96]
[1757687196662,7.06839998,241.35,241.3,0.03]
[1757687196863,6.34839998,241.31,241.3,0.03]
[1757687197069,6.34839998,241.31,241.3,33.99]
[1757687197266,6.34839998,241.4,241.3,38.13421881]
[1757687197563,6.34839998,241.31,241.3,38.85421881]
[1757687197759,6.34839998,241.31,241.3,0.03]
[1757687197955,6.34839998,241.31,241.3,33.99]
[1757687198152,6.34839998,241.31,241.3,34.71]
[1757687198353,6.34839998,241.31,241.3,38.85421881]
[1757687198784,6.34839998,241.31,241.3,33.99]
[1757687200670,10.49244705,241.31,241.3,0.03]
[1757687200877,10.49244705,241.31,241.3,33.99]
[1757687201076,4.14404707,241.31,241.3,0.03]
[1757687201253,6.34839998,241.31,241.3,33.99]
[1757687202156,6.34839998,241.31,241.3,0.03]
[1757687202157,7.06839998,241.31,241.3,0.03]
[1757687202776,0.72,241.31,241.3,0.03]
[1757687202968,7.06839998,241.31,241.3,0.03]
[1757687203165,4.14421881,241.3,241.28,33.99]
[1757687203364,6.34839998,241.29,241.28,0.03]
[1757687204084,7.06839998,241.29,241.28,0.03]
[1757687205171,10.3592591,241.33,241.28,0.03]
[1757687205386,6.34839998,241.29,241.28,0.03]
[1757687205571,4.14387535,241.32,241.28,0.03]
[1757687205778,4.14387535,241.32,241.28,0.75]
[1757687205779,6.34839998,241.29,241.28,0.75]
[1757687205963,6.34839998,241.29,241.28,33.99]
[1757687206285,6.34839998,241.29,241.28,0.03]
[1757687206492,7.06839998,241.29,241.28,33.99]
[1757687206990,7.06839998,241.29,241.28,0.03]
[1757687207292,7.06839998,241.29,241.25,0.03]
[1757687207293,14.50596816,241.28,241.25,0.03]
[1757687207462,6.34839998,241.26,241.25,0.03]
[1757687208280,14.50596816,241.28,241.25,0.03]
[1757687208491,6.34839998,241.26,241.25,0.75]
[1757687208696,6.34839998,241.26,241.25,33.99]
[1757687209488,10.49330589,241.26,241.25,33.99]
[1757687210383,10.49330589,241.26,241.25,0.03]
[1757687210968,10.49330589,241.26,241.25,33.97]
[1757687211193,10.49330589,241.26,241.25,0.03]
[1757687212487,13.82199769,241.26,241.25,0.03]
[1757687212786,13.82199769,241.26,241.25,33.97]
[1757687213897,4.14490591,241.26,241.25,34.69]
[1757687214477,4.14490591,241.26,241.25,33.97]
[1757687215794,4.14473411,241.27,241.25,0.03]
[1757687216112,13.82182589,241.27,241.25,0.03]
[1757687216269,13.82182589,241.27,241.26,33.94]
[1757687216472,14.47182589,241.27,241.25,0.03]
[1757687216774,13.82182589,241.27,241.25,0.03]
[1757687216977,0.65,241.26,241.25,0.03]
[1757687217387,4.14473411,241.27,241.25,0.03]
[1757687217786,13.82199769,241.26,241.25,0.03]
[1757687218387,4.14490591,241.26,241.25,0.03]
[1757687218588,3.64490591,241.26,241.25,0.71]
[1757687219800,4.14473411,241.27,241.25,33.97]
[1757687220298,4.14473411,241.27,241.25,0.03]
[1757687220299,9.67709178,241.26,241.25,0.03]
[1757687220482,9.67709178,241.26,241.25,33.97]
[1757687220678,9.67709178,241.26,241.25,0.03]
[1757687221589,4.14473411,241.27,241.25,0.71]
[1757687221788,9.67709178,241.27,241.25,0.71]
[1757687221994,14.50596816,241.28,241.25,0.03]
[1757687222207,9.67709178,241.27,241.26,33.92]
[1757687222708,4.14456233,241.28,241.26,34.6]
[1757687223000,0.06,241.29,241.27,0.68]
[1757687223609,4.20439056,241.29,241.28,0.68]
[1757687223900,4.20439056,241.29,241.28,34.6]
[1757687224106,4.20439056,241.29,241.25,0.03]
[1757687224315,9.67709178,241.27,241.25,0.03]
[1757687224682,10.32709178,241.27,241.25,0.03]
[1757687225205,0.65,241.26,241.25,0.03]
[1757687225413,0.65,241.26,241.23,0.03]
[1757687225603,9.67709178,241.24,241.23,0.03]
[1757687225809,13.82234132,241.24,241.23,0.03]
[1757687225990,14.47234132,241.24,241.23,0.03]
[1757687226307,4.79524954,241.24,241.23,0.03]
[1757687226513,4.14524954,241.24,241.23,0.03]
[1757687226812,13.82234132,241.24,241.23,0.71]
[1757687227214,13.82234132,241.24,241.23,0.03]
[1757687227584,0.06,241.29,241.23,0.71]
[1757687227787,0.06,241.29,241.25,13.59559401]
[1757687227989,0.06,241.29,241.27,13.59559401]
[1757687228505,0.06,241.32,241.29,13.59559401]
[1757687228685,0.06,241.32,241.3,26.0]
[1757687228890,0.06,241.32,241.31,14.27559401]
[1757687229898,0.06,241.32,241.31,52.33964108]
[1757687230097,0.06,241.32,241.31,18.41964108]
[1757687230293,0.06,241.32,241.31,52.33964108]
[1757687230489,0.06,241.32,241.31,14.27559401]
[1757687230891,0.06,241.32,241.31,34.58]
[1757687231126,0.06,241.32,241.31,33.9]
[1757687231309,4.20387535,241.32,241.29,0.68]
[1757687231509,0.06,241.32,241.31,33.9]
[1757687232112,4.20387535,241.32,241.31,33.9]
[1757687232808,13.88096713,241.32,241.31,33.9]
[1757687233603,9.73709178,241.32,241.31,33.9]
[1757687233918,9.73709178,241.32,241.31,34.58]
[1757687234215,0.06,241.32,241.31,34.58]
[1757687234592,0.06,241.32,241.31,48.17559401]
[1757687234915,0.06,241.32,241.31,0.68]
[1757687235108,4.20387535,241.32,241.31,33.9]
[1757687235413,13.88096713,241.32,241.31,33.9]
[1757687236134,24.89065551,241.32,241.31,33.9]
[1757687236316,24.89065551,241.32,241.25,0.68]
[1757687236519,9.67709178,241.27,241.26,33.9]
[1757687237493,13.82182589,241.27,241.26,33.9]
[1757687238014,13.82182589,241.27,241.23,0.03]
[1757687238230,4.14473411,241.27,241.26,33.9]
[1757687238430,13.82182589,241.27,241.26,33.9]